Cogmind - Beta 13 @@@ ROGUE MODE // 2024.04.26 @ 00:54:02 Player: AntinDisguise Result: Destroyed by D-53 Grenadier with Mini Grenade Launcher Performance ------------- Evolutions (0) 0 Regions Visited (2) 400 Robots Destroyed (17) 85 Value Destroyed (333) 333 Prototype IDs (0) 0 Alien Tech Used (0) 0 Bonus (0) 0 TOTAL SCORE: 818 Bonus ------- None Cogmind --------- Core Integrity 0/250 Matter 275/300 Energy 77/100 System Corruption 0% Temperature Cool (0) Movement Treading (240) Ox1 Location -10/Mines Parts ------- > --- POWER (1) -------- (None) > --- PROPULSION (2) --- Light Treads Light Treads > --- UTILITY (2) ------ Improved Heat Sink High-capacity Storage Unit > --- WEAPON (2) ------- Medium Laser > --- INVENTORY (20) --- Grenade Launcher Flail Peak State ------------ > --- POWER ------------ Ion Engine > --- PROPULSION ------- Armored Wheel Armored Wheel > --- UTILITY ---------- Medium Storage Unit Medium Armor Plating > --- WEAPON ----------- Medium Laser Medium Laser > --- INVENTORY -------- Light Treads Light Treads Improved Heat Sink Grenade Launcher Flail [Rating: 10] Favorites ----------- Power Ion Engine Engine Ion Engine Propulsion Compact Wheel Treads Light Treads Wheel Compact Wheel Utility Medium Storage Unit Device Tractor Beam Storage Medium Storage Unit Protection Medium Armor Plating Weapon Medium Laser Energy Gun Medium Laser Ballistic Gun Light Assault Rifle Build | -11 -10 -10 ------- Run | Yrd Mat Min Slots Evolved . | . . . Power . | . . . Propulsion . | . . . Utility . | . . . Weapon . | . . . Parts Attached 24 | 8 13 3 Power 2 | 1 1 . Engine 2 | 1 1 . Core . | . . . Reactor . | . . . Propulsion 10 | 3 5 2 Treads 2 | . . 2 Leg . | . . . Wheel 8 | 3 5 . Hover . | . . . Flight . | . . . Utility 6 | 2 3 1 Device 2 | 1 . 1 Storage 3 | 1 2 . Processor . | . . . Hackware . | . . . Protection 1 | . 1 . Artifact . | . . . Weapon 6 | 2 4 . Energy Gun 5 | 1 4 . Energy Cannon . | . . . Ballistic Gun 1 | 1 . . Ballistic Cannon . | . . . Launcher . | . . . Special Weapon . | . . . Impact Weapon . | . . . Slashing Weapon . | . . . Piercing Weapon . | . . . Special Melee Weapon . | . . . Unidentified Prototypes . | . . . Parts Lost 6 | . 1 5 Power 1 | . . 1 Propulsion 3 | . 1 2 Utility 1 | . . 1 Weapon 1 | . . 1 Highest Loss Streak 5 | . 1 5 To Critical Strikes . | . . . Average Slot Usage (%) 97 | . 98 89 Engine 13 | . 14 8 Wheel 26 | . 26 21 Device 7 | . 7 3 Storage 14 | . 14 14 Protection 6 | . 6 8 Energy Gun 24 | . 24 24 Ballistic Gun 2 | . 2 . Naked Turns . | . . . Heaviest Build 57 | 12 57 57 Greatest Support 40 | 32 32 40 Greatest Overweight (x) 2 | . 2 2 Average Overweight (x) . | . . 1 Largest Inventory Capacity 20 | 8 20 20 Average Capacity 10 | 7 10 20 Most Carried 7 | 4 7 5 Average Carried 4 | 1 4 4 Final Capacity 20 | 8 20 20 Final Carried 5 | 2 5 2 Class Distribution -------------------- 87% | Mutant 12% | Scavenger-Mutant Dominant Class ---------------- Mutant | -10/Materials Mutant | -10/Mines Resources | -11 -10 -10 ----------- Run | Yrd Mat Min Matter Collected 478 | 291 167 20 Remotely 109 | 21 88 . Salvage Created 664 | 163 485 16 Parts 29 | 8 21 . Haulers Intercepted 2 | . 2 . Recyclers Shooed 4 | 1 3 . Parts Field Recycled . | . . . Retrieved Matter . | . . . Parts Self-Destructed . | . . . Prevented . | . . . Kills | -11 -10 -10 ------- Run | Yrd Mat Min Combat Hostiles Destroyed 8 | . 7 1 Guns 8 | . 7 1 Classes Destroyed 7 | 2 4 1 Worker 2 | . 2 . Tunneler 4 | 4 . . Hauler 2 | . 2 . Recycler 1 | 1 . . Watcher 1 | . 1 . Grunt 7 | . 7 . Assembled 1 | . . 1 Best Kill Streak 5 | 5 4 1 Combat Bots Only 4 | . 4 1 Max Kills in Single Turn 2 | 1 2 1 Gunslinging . | . . . Exploded . | . . . Melee . | . . . Uniques/NPCs Destroyed . | . . . Combat | -11 -10 -10 -------- Run | Yrd Mat Min Hostile Shots Fired 71 | . 48 23 Missed 18 | . 14 4 Damage Taken 1095 | . 468 627 Core 263 | . 123 140 Absorbed by Shields . | . . . Core Remaining (%) 100 | 100 . . Volleys Fired 57 | 11 45 1 Largest 2 | 2 2 2 Hottest 115 | 70 100 115 Shots Fired 113 | 22 89 2 Gun 113 | 22 89 2 Cannon . | . . . Launcher . | . . . Special . | . . . Kinetic 29 | 11 18 . Thermal 84 | 11 71 2 Explosive . | . . . Electromagnetic . | . . . Robot Hit Streak 8 | 8 7 4 Robot Miss Streak 3 | 2 3 . Penetration Max . | . . . Secondary Targets 2 | . 1 1 Max Gunslinging Chain 1 | . 1 1 Shots Hit Robots 74 | 15 57 2 Core Hits 33 | 7 25 1 Critical Kills . | . . . Critical Parts Destroyed . | . . . Critical Strikes 9 | 3 6 . Burn 9 | 3 6 . Melee Attacks . | . . . Impact . | . . . Slashing . | . . . Piercing . | . . . Sneak Attacks . | . . . Combat Hostiles . | . . . Follow-up Attacks . | . . . Damage Inflicted 915 | 169 715 31 Guns 915 | 169 715 31 Cannons . | . . . Explosions . | . . . Melee . | . . . Ramming . | . . . Kinetic 171 | 68 103 . Thermal 744 | 101 612 31 Explosive . | . . . Electromagnetic . | . . . Impact . | . . . Slashing . | . . . Piercing . | . . . Highest Corruption . | . . . Average Corruption . | . . . Corruption Purged . | . . . Corruption Blocked . | . . . Overload Shots . | . . . Overflow Damage . | . . . Projectiles . | . . . Explosions . | . . . Melee . | . . . Knockbacks . | . . . Impact . | . . . Kinetic . | . . . Secondary . | . . . Self-Inflicted Damage . | . . . Shots . | . . . Rammed . | . . . Targets Rammed . | . . . Kicked . | . . . Crushed . | . . . Highest Temperature 585 | 70 585 39 Average Temperature 130 | 31 149 23 Received Heat Transfer 282 | . 282 . Effects 10 | . 10 . Shutdowns 3 | . 3 . Energy Bleed 2 | . 2 . Interference 1 | . 1 . Matter Decay 1 | . 1 . Damage (minor) 2 | . 2 . Damage (core) 1 | . 1 . Siege Activations . | . . . Robots Corrupted . | . . . Combat Hostiles . | . . . Parts Fried . | . . . Impact Corruptions . | . . . Robots Melted 1 | . 1 . Combat Hostiles . | . . . Parts Melted 5 | . 5 . Heat Transferred 2849 | 518 2257 74 Parts Sabotaged . | . . . Parts Stolen . | . . . Parts Stripped . | . . . Power Chain Reactions . | . . . Alert | -11 -10 -10 ------- Run | Yrd Mat Min Peak Influence 182 | 25 182 12 Initial 16 | . 16 12 Average 61 | 10 75 8 Maximum Alert Level . | . . . Low Security (%) 100 | 100 100 100 Level 1 . | . . . Level 2 . | . . . Level 3 . | . . . Level 4 . | . . . Level 5 . | . . . High Security . | . . . Max Security . | . . . Squads Dispatched 1 | . 1 . Investigation . | . . . Extermination . | . . . Reinforcement 1 | . 1 . Assault . | . . . Garrison . | . . . Intercept . | . . . Searches Triggered . | . . . Construction Impeded . | . . . Haulers Reinforced . | . . . Active Scanning Responses . | . . . Cargo Convoy Interrupts . | . . . Stealth | -11 -10 -10 --------- Run | Yrd Mat Min Distress Signals . | . . . Communications Jammed . | . . . Distress Signals . | . . . Times Spotted 29 | . 15 14 Peak Tracking Total 14 | . 5 14 Tactical Retreats 3 | . 2 1 Traps | -11 -10 -10 ------- Run | Yrd Mat Min Traps Triggered 1 | . 1 . Indirectly . | . . . Trap Hack Attempts . | . . . Triggered . | . . . Disarmed . | . . . Reprogrammed . | . . . Reused . | . . . Traps Extracted . | . . . Installed . | . . . Triggered . | . . . Machines | -11 -10 -10 ---------- Run | Yrd Mat Min Machines Disabled . | . . . Max in Single Turn . | . . . Machines Repaired . | . . . Machines Dismantled . | . . . Machines Sabotaged . | . . . Overloaded Fab Kills . | . . . Hacking | -11 -10 -10 --------- Run | Yrd Mat Min Machines Accessed 2 | . 2 . Terminals 1 | . 1 . Fabricators . | . . . Repair Stations . | . . . Recycling Units 1 | . 1 . Scanalyzers . | . . . Garrison Access . | . . . Total Hacks 7 | . 7 . Successful 2 | . 2 . Failed 5 | . 5 . Catastrophic . | . . . Database Lockouts . | . . . Manual . | . . . Terminals 2 | . 2 . Fabricators . | . . . Repair Stations . | . . . Recycling Units 5 | . 5 . Scanalyzers . | . . . Garrison Access . | . . . Terminal Hacks 1 | . 1 . Branch Access Points 1 | . 1 . Fabricator Hacks . | . . . Repair Station Hacks . | . . . Recycling Unit Hacks 1 | . 1 . Retrieve Components 1 | . 1 . Scanalyzer . | . . . Garrison Access Hacks . | . . . Unauthorized Hacks . | . . . Terminals . | . . . Fabricators . | . . . Repair Stations . | . . . Recycling Units . | . . . Scanalyzers . | . . . Garrison Access . | . . . Data Cores Recovered . | . . . Used . | . . . Hacking Detections 1 | . 1 . Full Trace Events . | . . . Feedback Events . | . . . Feedback Blocked . | . . . Robot Schematics Acquired . | . . . Robots Built . | . . . Authchips . | . . . Time . | . . . Total Robot Build Rating . | . . . Part Schematics Acquired . | . . . Parts Built . | . . . Authchips . | . . . Time . | . . . Total Part Build Rating . | . . . Parts Repaired . | . . . Time . | . . . Parts Recycled . | . . . Recycled Matter . | . . . Retrieved Matter . | . . . Retrieved Components 9 | . 9 . Parts Scanalyzed . | . . . Part Schematics Acquired . | . . . Parts Damaged . | . . . Bothacking | -11 -10 -10 ------------ Run | Yrd Mat Min Used RIF Installer . | . . . Robots Hacked . | . . . Non-combat . | . . . Combat . | . . . Robot Hacks Applied . | . . . Relay Couplers Released . | . . . Fabnet Peak Effective % . | . . . Robots Rewired . | . . . Allies Hacked . | . . . Hacks Repelled . | . . . Allies | -11 -10 -10 -------- Run | Yrd Mat Min Total Allies . | . . . Largest Group . | . . . Highest-Rated Group . | . . . Highest-Rated Ally . | . . . Total Orders . | . . . Ally Attacks . | . . . Total Damage . | . . . Kills . | . . . Allies Corrupted . | . . . Allies Melted . | . . . Intel | -11 -10 -10 ------- Run | Yrd Mat Min Robot Analysis Total . | . . . Derelict Logs Recovered 1 | . . 1 Drone Launches . | . . . Drone Recoveries . | . . . Exploration | -11 -10 -10 ------------- Run | Yrd Mat Min Turns Passed 1059 | 151 836 72 Spaces Moved 787 | 113 626 48 Core 6 | 6 . . Treads 6 | . . 6 Legs . | . . . Wheels 775 | 107 626 42 Hover . | . . . Flight . | . . . Fastest Speed 50 | 50 90 110 Average Speed 97 | 90 95 138 Slowest Speed 240 | 100 125 240 Overloaded Moves . | . . . Propulsion Burnouts . | . . . Robots Hopped . | . . . Cave-ins Triggered . | . . . Exploration Rate (%) 32 | 5 74 18 Regions Visited 2 Branch Regions 1 Pre-discovered Areas . | . . . Known Exits Taken 1 | . 1 . Unknown Exits Taken 1 | 1 . . Scrap Searched 1 | . . 1 Spaces Dug . | . . . Terrain Destroyed . | . . . Melee . | . . . Projectile . | . . . AOE . | . . . Terrain Rammed . | . . . Walls Destroyed . | . . . Machines Disabled . | . . . Actions | -11 -10 -10 --------- Run | Yrd Mat Min Total 979 | 142 785 52 Wait 67 | . 67 . Move 785 | 112 625 48 Hop . | . . . Pick Up 31 | 10 21 . Fast Attach . | . . . Attach 21 | 8 10 3 Detach . | . . . Swap 3 | . 3 . Drop 15 | 1 14 . Fire 57 | 11 45 1 Melee . | . . . Ram . | . . . Kick . | . . . Crush . | . . . Escape Stasis . | . . . Rewire . | . . . Trap . | . . . Miscellaneous . | . . . Route ------- -11/Scrapyard -10/Materials (discovered 4 exits: *Mat x2 / *Min x2) -10/Mines (discovered 1 exit: Mat) History --------- Turn | Location | Event 20 | -11/Scrapyard | Discovered new exit (range 16) 152 | -11/Scrapyard | Entered Materials 337 | -10/Materials | Build established: Mutant 398 | -10/Materials | Identified exit to Mines 483 | -10/Materials | Discovered new exit (range 11) 910 | -10/Materials | Discovered new exit (range 10) 988 | -10/Materials | Entered Mines 1016 | -10/Mines | Identified exit to Materials 1018 | -10/Mines | Assembled infested the area 1023 | -10/Mines | Assisted by a Guerilla fighting off Assembled 1037 | -10/Mines | Core integrity fell below 50% 1044 | -10/Mines | Core integrity fell below 20% 1060 | -10/Mines | Destroyed by D-53 Grenadier with Mini Grenade Launcher Last Messages --------------- Com. Wheel destroyed. Arm. Wheel destroyed. The unstable cave ceiling collapses. as-87144 destroyed. as-06904 destroyed. as-59407 destroyed. as-21713 destroyed. as-27438 destroyed. as-66794 destroyed. as-65109 destroyed. as-32179 destroyed. as-45912 destroyed. Particle Gun destroyed. The unstable cave ceiling collapses. as-40473 destroyed. The unstable cave ceiling collapses. U-05 Engineer lays Concrete. The unstable cave ceiling collapses. U-05 Engineer lays Concrete. The unstable cave ceiling collapses. Map ----- +----------------------------------------------------+ | ?????????????????????????????????????????????????? | | ?????????????????????????????????????????????????? | | ?????????????????????????????????????????????????? | | ?????????????????????????????????????????????????? | | ?????????????????????????????????????????????????? | | ?????????????????????????????????????????????????? | | ?????????????????????????????????????????????????? | | ?????????????????????????????????????????????????? | | ?????????????????????????????????????????????????? | | ?????????????????????????????????????????????????? | | ?????????????????????????????????????????????????? | | ?????????????????????????????????????????????????? | | ?????????????????????????????????????????????????? | | ?????????????????????????????????????????????????? | | ?????????????????????????????????????????????????? | | ?????????????????????????????????????????????????? | | ?????????????????????????????????????????????????? | | ?????????????????????????????????????????????????? | | ?????????????????#???????????????????????????????? | | ?????????????????# ???????????????###????????????? | | ??????????????????# ???????##????? ?????????????? | | ??????????????????# ?##### ###??? #?????????????? | | ???????????????????? # #### #?????????????? | | ?????????????????????# # ??????????????? | | ????????????????## # # #??????????????? | | ????????????????# @ # #####??????????? | | ????????????????# # # ##?????????? | | ????????????????????? #?????????? | | ?????????????????# " #?????????? | | ??????????????????# ##?????????? | | ??????????????????# d #??????????? | | ??????????????????# d ########### | | ?????????????????# ### # %[ " | | ????????????????# ??## # ! "%" | | ???????????????# ?? # ## ######### | | ???????????????# ?? ## #?????????? | | ???????????????## ? ?? # #?????????? | | ????????????????## ?? #?????????? | | ?????????????????#### ??# ##?????????? | | ????????????????????## ???#### ###??????????? | | ?????????????????????# #??????# #????????????? | | ?????????????????????? #???????# #????????????? | | ??????????????????????# ?????????# #????????????? | | ???????????????????????#??????????# #????????????? | | ??????????????????????????????????# #????????????? | | ??????????????????????????????????# #????????????? | | ??????????????????????????????????# #????????????? | | ??????????????????????????????????# #????????????? | | ????????????????????????????????? #????????????? | | ????????????????????????????????# ##????????????? | +----------------------------------------------------+ Best States ------------- Heat Dissipation 39 Energy Generation 10 Energy Capacity 250 Matter Stores 300 Matter Capacity 300 Sight Range 16 Terrain Scan Density 10 Armor Coverage 225 Evasion (%) 42 Recoil Reduction 2 Item Schematics ----------------- None Robot Schematics ------------------ None Fabricated ------------ Nothing Alien Tech Used ----------------- None Achievements -------------- None Challenges ------------ None Game ------ Seed StorageThunderSlayer Manual? 0 Play Time 00:10:21 Cumulative 26.6 hours Start 2024.04.26 @ 00:44:36 End 2024.04.26 @ 00:54:02 Sessions 1 Manual Loads 0 Difficulty Rogue Special Mode None Game No. 75 Rogue 73 Adventurer 2 Explorer 0 Win Type - Total 0 Types 0/0/0/0/0/0/0/0/0 Lore% 22 Gallery% 30 Achievement% 23 Wizard Run 0 Options --------- Layout 1 ASCII 0 Keyboard 0 Movement Mouse Keybinds 0 Fullscreen 1 Font 16/SmallcapsGlow Map View 27x19 Zoom Use 95% Tactical HUD 0 Map Filters NONE Filters NONE Steam 1 RUN: 2a766bac-d577-4d08-b240-72e47ddc7054